lending/lending_fUSD_20250719
["ID","MTS","AMOUNT","RATE_DAILY","PERIOD"]
[373148013,1752883845819,-480.0,0.00019178,2]
[373148015,1752883845829,-480.0,0.00019178,2]
[373148017,1752883845840,-480.0,0.00019178,2]
[373148019,1752883845850,-480.0,0.00019178,2]
[373148021,1752883845859,-460.0,0.00019178,2]
[373148023,1752883845869,-480.0,0.00019178,2]
[373148025,1752883845879,-480.0,0.00019178,2]
[373148027,1752883845889,-920.75,0.00019178,2]
[373148029,1752883845899,-158.757761,0.00019178,2]
[373148031,1752883845909,-480.0,0.00019178,2]
[373148033,1752883845921,-480.0,0.00019178,2]
[373148035,1752883845931,-460.0,0.00019178,2]
[373148037,1752883845941,-480.0,0.00019178,2]
[373148039,1752883845951,-482.0,0.00019178,2]
[373148041,1752883845961,-480.0,0.00019178,2]
[373148043,1752883845970,-480.0,0.00019178,2]
[373148045,1752883845980,-480.0,0.00019178,2]
[373148047,1752883845990,-480.0,0.00019178,2]
[373148049,1752883845999,-460.0,0.00019178,2]
[373148051,1752883846010,-480.0,0.00019178,2]
[373148053,1752883846019,-480.0,0.00019178,2]
[373148055,1752883846029,-168.69389238,0.00019178,2]
[373148057,1752883846038,-480.0,0.00019178,2]
[373148059,1752883846048,-647.12,0.00019178,2]
[373148061,1752883846057,-480.0,0.00019178,2]
[373148063,1752883846067,-480.0,0.00019178,2]
[373148065,1752883846076,-480.0,0.00019178,2]
[373148067,1752883846086,-480.0,0.00019178,2]
[373148069,1752883846095,-480.0,0.00019178,2]
[373148071,1752883846104,-480.0,0.00019178,2]
[373148073,1752883846113,-500.0,0.00019178,2]
[373148075,1752883846123,-583.37,0.00019178,2]
[373148077,1752883846132,-480.0,0.00019178,2]
[373148079,1752883846142,-480.0,0.00019178,2]
[373148082,1752883846151,-480.0,0.00019178,2]
[373148084,1752883846162,-480.0,0.00019178,2]
[373148085,1752883846171,-480.0,0.00019178,2]
[373148088,1752883846182,-460.0,0.00019178,2]
[373148090,1752883846193,-460.0,0.00019178,2]
[373148092,1752883846202,-480.0,0.00019178,2]
[373148094,1752883846212,-480.0,0.00019178,2]
[373148096,1752883846221,-480.0,0.00019178,2]
[373148098,1752883846231,-480.0,0.00019178,2]
[373148099,1752883846241,-480.0,0.00019178,2]
[373148102,1752883846250,-480.0,0.00019178,2]
[373148103,1752883846260,-480.0,0.00019178,2]
[373148105,1752883846270,-480.0,0.00019178,2]
[373148108,1752883846279,-480.0,0.00019178,2]
[373148110,1752883846289,-480.0,0.00019178,2]
[373148112,1752883846299,-607.81,0.00019178,2]
[373148114,1752883846308,-440.0,0.00019178,2]
[373148116,1752883846319,-480.0,0.00019178,2]
[373148118,1752883846329,-480.0,0.00019178,2]
[373148120,1752883846339,-807.81,0.00019178,2]
[373148122,1752883846348,-480.0,0.00019178,2]
[373148124,1752883846357,-490.0,0.00019178,2]
[373148126,1752883846367,-480.0,0.00019178,2]
[373148128,1752883846376,-480.0,0.00019178,2]
[373148130,1752883846386,-480.0,0.00019178,2]
[373148132,1752883846396,-480.0,0.00019178,2]
[373148134,1752883846406,-674.87,0.00019178,2]
[373148136,1752883846415,-480.0,0.00019178,2]
[373148138,1752883846424,-460.0,0.00019178,2]
[373148140,1752883846434,-480.0,0.00019178,2]
[373148142,1752883846444,-480.0,0.00019178,2]
[373148144,1752883846453,-480.0,0.00019178,2]
[373148146,1752883846464,-500.0,0.00019178,2]
[373148147,1752883846474,-706.8,0.00019178,2]
[373148150,1752883846484,-480.0,0.00019178,2]
[373148152,1752883846494,-480.0,0.00019178,2]
[373148154,1752883846503,-851.98,0.00019178,2]
[373148156,1752883846513,-724.41,0.00019178,2]
[373148158,1752883846523,-480.0,0.00019178,2]
[373148160,1752883846532,-577.49650401,0.00019178,2]
[373148162,1752883846542,-492.66725338,0.00019178,2]
[373148164,1752883846552,-480.0,0.00019178,2]
[373148165,1752883846562,-480.0,0.00019178,2]
[373148168,1752883846574,-480.0,0.00019178,2]
[373148169,1752883846584,-388.59026478,0.00019178,2]
[373148172,1752883846594,-151.0,0.00019178,2]
[373148174,1752883846603,-480.0,0.00019178,2]
[373148176,1752883846614,-151.0,0.00019178,2]
[373148177,1752883846623,-480.0,0.00019178,2]
[373148179,1752883846634,-151.0,0.00019178,2]
[373148181,1752883846644,-480.0,0.00019178,2]
[373148184,1752883846654,-549.06,0.00019178,2]
[373148186,1752883846664,-460.0,0.00019178,2]
[373148188,1752883846674,-664.17,0.00019178,2]
[373148190,1752883846684,-495.19,0.00019178,2]
[373148192,1752883846694,-480.0,0.00019178,2]
[373148194,1752883846704,-480.0,0.00019178,2]
[373148196,1752883846714,-500.0,0.00019178,2]
[373148198,1752883846723,-480.0,0.00019178,2]
[373148199,1752883846734,-480.0,0.00019178,2]
[373148202,1752883846744,-462.66762203,0.00019178,2]
[373148203,1752883846754,-480.0,0.00019178,2]
[373148206,1752883846764,-480.0,0.00019178,2]
[373148208,1752883846774,-480.0,0.00019178,2]
[373148210,1752883846783,-480.0,0.00019178,2]
[373148212,1752883846793,-480.0,0.00019178,2]
[373148214,1752883846802,-480.0,0.00019178,2]
[373148216,1752883846812,-480.0,0.00019178,2]
[373148218,1752883846822,-384.15799827,0.00019178,2]
[373148220,1752883846833,-480.0,0.00019178,2]
[373148222,1752883846844,-480.0,0.00019178,2]
[373148224,1752883846853,-521.42,0.00019178,2]
[373148226,1752883846863,-480.0,0.00019178,2]
[373148228,1752883846873,-549.63,0.00019178,2]
[373148230,1752883846883,-480.0,0.00019178,2]
[373148232,1752883846894,-602.69,0.00019178,2]
[373148234,1752883846905,-462.59872493,0.00019178,2]
[373148236,1752883846914,-480.0,0.00019178,2]
[373148238,1752883846924,-480.0,0.00019178,2]
[373148240,1752883846933,-874.19,0.00019178,2]
[373148242,1752883846942,-460.0,0.00019178,2]
[373148244,1752883846952,-480.0,0.00019178,2]
[373148246,1752883846962,-480.0,0.00019178,2]
[373148248,1752883846971,-480.0,0.00019178,2]
[373148250,1752883846981,-420.0,0.00019178,2]
[373148252,1752883846992,-480.0,0.00019178,2]
[373148254,1752883847003,-480.0,0.00019178,2]
[373148256,1752883847012,-460.0,0.00019178,2]
[373148258,1752883847021,-480.0,0.00019178,2]
[373148260,1752883847035,-480.0,0.00019178,2]
[373148262,1752883847050,-480.0,0.00019178,2]
[373148264,1752883847061,-720.52,0.00019178,2]
[373148266,1752883847070,-460.0,0.00019178,2]
[373148268,1752883847079,-480.0,0.00019178,2]
[373148270,1752883847089,-480.0,0.00019178,2]
[373148272,1752883847100,-460.0,0.00019178,2]
[373148274,1752883847110,-480.0,0.00019178,2]
[373148276,1752883847120,-480.0,0.00019178,2]
[373148278,1752883847129,-480.0,0.00019178,2]
[373148280,1752883847138,-460.0,0.00019178,2]
[373148281,1752883847149,-480.0,0.00019178,2]
[373148284,1752883847160,-480.0,0.00019178,2]
[373148286,1752883847170,-480.0,0.00019178,2]
[373148288,1752883847184,-480.0,0.00019178,2]
[373148290,1752883847202,-480.0,0.00019178,2]
[373148292,1752883847212,-571.10150765,0.00019178,2]
[373148388,1752883848217,-11.67849235,0.00019178,2]
[373148390,1752883848226,-480.0,0.00019178,2]
[373148392,1752883848236,-480.0,0.00019178,2]
[373148393,1752883848245,-480.0,0.00019178,2]
[373148396,1752883848255,-480.0,0.00019178,2]
[373148397,1752883848265,-424.21360407,0.00019178,2]
[373148400,1752883848275,-480.0,0.00019178,2]
[373148402,1752883848284,-480.0,0.00019178,2]
[373148403,1752883848293,-480.0,0.00019178,2]
[373148406,1752883848302,-480.0,0.00019178,2]
[373148408,1752883848312,-420.0,0.00019178,2]
[373148410,1752883848321,-458.15807993,0.00019178,2]
[373148412,1752883848333,-66.10386601,0.00019178,2]
[373148414,1752883848342,-480.0,0.00019178,2]
[373148416,1752883848351,-480.0,0.00019178,2]
[373148418,1752883848361,-837.89,0.00019178,2]
[373148420,1752883848370,-480.0,0.00019178,2]
[373148422,1752883848379,-480.0,0.00019178,2]
[373148424,1752883848388,-504.33967415,0.00019178,2]
[373148426,1752883848398,-480.0,0.00019178,2]
[373148428,1752883848408,-1041.56,0.00019178,2]
[373148430,1752883848417,-480.0,0.00019178,2]
[373148432,1752883848426,-151.0,0.00019178,2]
[373148434,1752883848436,-427.74505985,0.00019178,2]
[373148439,1752883848475,-52.25494015,0.00019178,2]
[373148441,1752883848485,-554.75,0.00019178,2]
[373148443,1752883848495,-151.0,0.00019178,2]
[373148445,1752883848505,-480.0,0.00019178,2]
[373148447,1752883848515,-1023.65,0.00019178,2]
[373148449,1752883848525,-480.0,0.00019178,2]
[373148451,1752883848534,-151.0,0.00019178,2]
[373148453,1752883848544,-480.0,0.00019178,2]
[373148455,1752883848554,-462.72604234,0.00019178,2]
[373148457,1752883848564,-480.0,0.00019178,2]
[373148459,1752883848578,-709.55,0.00019178,2]
[373148461,1752883848588,-151.0,0.00019178,2]
[373148463,1752883848597,-151.0,0.00019178,2]
[373148465,1752883848607,-151.0,0.00019178,2]
[373148467,1752883848618,-480.0,0.00019178,2]
[373148469,1752883848628,-480.0,0.00019178,2]
[373148471,1752883848637,-480.0,0.00019178,2]
[373148473,1752883848648,-973.79,0.00019178,2]
[373148475,1752883848659,-460.0,0.00019178,2]
[373148476,1752883848669,-460.0,0.00019178,2]
[373148478,1752883848679,-480.0,0.00019178,2]
[373148481,1752883848688,-480.0,0.00019178,2]
[373148483,1752883848698,-480.0,0.00019178,2]
[373148485,1752883848708,-480.0,0.00019178,2]
[373148487,1752883848718,-483.25,0.00019178,2]
[373148488,1752883848728,-480.0,0.00019178,2]
[373148490,1752883848738,-151.0,0.00019178,2]
[373148492,1752883848748,-151.0,0.00019178,2]
[373148495,1752883848758,-615.81,0.00019178,2]
[373148497,1752883848770,-151.0,0.00019178,2]
[373148498,1752883848779,-480.0,0.00019178,2]
[373148501,1752883848789,-417.25481576,0.00019178,2]
[373148503,1752883848799,-480.0,0.00019178,2]
[373148504,1752883848808,-480.0,0.00019178,2]
[373148506,1752883848817,-480.0,0.00019178,2]
[373148508,1752883848827,-177.632285,0.00019178,2]
[373148511,1752883848837,-177.632285,0.00019178,2]
[373148513,1752883848846,-460.0,0.00019178,2]
[373148515,1752883848856,-480.0,0.00019178,2]
[373148516,1752883848865,-177.632285,0.00019178,2]
[373148518,1752883848875,-1022.46,0.00019178,2]
[373148521,1752883848884,-507.94,0.00019178,2]
[373148523,1752883848894,-4168.93,0.00019178,2]
[373148524,1752883848904,-480.0,0.00019178,2]
[373148527,1752883848913,-480.0,0.00019178,2]
[373148529,1752883848922,-589.46,0.00019178,2]
[373148531,1752883848932,-460.0,0.00019178,2]
[373148533,1752883848941,-480.0,0.00019178,2]
[373148535,1752883848951,-761.87,0.00019178,2]
[373148537,1752883848960,-177.632285,0.00019178,2]
[373148539,1752883848970,-480.0,0.00019178,2]
[373148541,1752883848980,-177.632285,0.00019178,2]
[373148543,1752883848989,-177.632285,0.00019178,2]
[373148545,1752883848999,-480.0,0.00019178,2]
[373148547,1752883849008,-480.0,0.00019178,2]
[373148549,1752883849018,-480.0,0.00019178,2]
[373148551,1752883849027,-480.0,0.00019178,2]
[373148553,1752883849037,-480.0,0.00019178,2]
[373148555,1752883849047,-151.0,0.00019178,2]
[373148557,1752883849057,-480.0,0.00019178,2]
[373148559,1752883849067,-480.0,0.00019178,2]
[373148561,1752883849077,-480.0,0.00019178,2]
[373148563,1752883849087,-480.0,0.00019178,2]
[373148565,1752883849097,-480.0,0.00019178,2]
[373148567,1752883849106,-480.0,0.00019178,2]
[373148569,1752883849115,-480.0,0.00019178,2]
[373148571,1752883849125,-480.0,0.00019178,2]
[373148573,1752883849134,-819.26,0.00019178,2]
[373148575,1752883849144,-151.0,0.00019178,2]
[373148577,1752883849153,-480.0,0.00019178,2]
[373148579,1752883849163,-500.0,0.00019178,2]
[373148581,1752883849172,-480.0,0.00019178,2]
[373148583,1752883849183,-500.0,0.00019178,2]
[373148585,1752883849192,-480.0,0.00019178,2]
[373148586,1752883849203,-480.0,0.00019178,2]
[373148587,1752883849213,-480.0,0.00019178,2]
[373148588,1752883849223,-480.0,0.00019178,2]
[373148589,1752883849232,-480.0,0.00019178,2]
[373148590,1752883849242,-480.0,0.00019178,2]
[373148591,1752883849252,-518.75,0.00019178,2]
[373148592,1752883849262,-1010.41,0.00019178,2]
[373148593,1752883849271,-629.82,0.00019178,2]
[373148595,1752883849280,-613.72,0.00019178,2]
[373148597,1752883849290,-353.79350706,0.00019178,2]
[373148600,1752883849300,-151.0,0.00019178,2]
[373148602,1752883849310,-480.0,0.00019178,2]
[373148604,1752883849319,-258.820815,0.00019178,2]
[373148605,1752883849331,-480.0,0.00019178,2]
[373148607,1752883849340,-480.0,0.00019178,2]
[373148609,1752883849350,-480.0,0.00019178,2]
[373148611,1752883849359,-480.0,0.00019178,2]
[373148613,1752883849368,-480.0,0.00019178,2]
[373148615,1752883849377,-480.0,0.00019178,2]
[373148617,1752883849386,-480.0,0.00019178,2]
[373148619,1752883849396,-500.0,0.00019178,2]
[373148621,1752883849405,-480.0,0.00019178,2]
[373148623,1752883849415,-480.0,0.00019178,2]
[373148625,1752883849424,-856.88,0.00019178,2]
[373148627,1752883849433,-460.0,0.00019178,2]
[373148629,1752883849443,-495.26,0.00019178,2]
[373148631,1752883849452,-480.0,0.00019178,2]
[373148633,1752883849461,-363.02209047,0.00019178,2]
[373148635,1752883849471,-570.13,0.00019178,2]
[373148638,1752883849482,-528.37,0.00019178,2]
[373148639,1752883849491,-160.581046,0.00019178,2]
[373148642,1752883849501,-594.67583,0.00019178,2]
[373148644,1752883849512,-864.84,0.00019178,2]
[373148646,1752883849522,-160.581046,0.00019178,2]
[373148647,1752883849531,-480.0,0.00019178,2]
[373148649,1752883849543,-594.67583,0.00019178,2]
[373148652,1752883849554,-160.581046,0.00019178,2]
[373148654,1752883849565,-594.67583,0.00019178,2]
[373148656,1752883849576,-151.0,0.00019178,2]
[373148658,1752883849586,-480.0,0.00019178,2]
[373148660,1752883849595,-151.0,0.00019178,2]
[373148662,1752883849605,-160.581046,0.00019178,2]
[373148664,1752883849615,-160.581046,0.00019178,2]
[373148666,1752883849625,-160.581046,0.00019178,2]
[373148668,1752883849634,-480.0,0.00019178,2]
[373148670,1752883849644,-480.0,0.00019178,2]
[373148672,1752883849657,-480.0,0.00019178,2]
[373148674,1752883849667,-480.0,0.00019178,2]
[373148676,1752883849676,-460.0,0.00019178,2]
[373148677,1752883849685,-480.0,0.00019178,2]
[373148679,1752883849695,-341.31093562,0.00019178,2]
[373148769,1752883850543,-138.68906438,0.00019178,2]
[373148771,1752883850552,-480.0,0.00019178,2]
[373148773,1752883850562,-426.66493555,0.00019178,2]
[373149494,1752883983199,150.45,0.00013699,2]
[373149498,1752884396871,150.0,0.00023,30]
[373149500,1752884697109,5800.0,0.00013537,2]
[373149501,1752884720759,5800.0,0.00013529,2]
[373149502,1752884743557,5800.0,0.0001352,2]
[373149503,1752884766260,5800.0,0.00013512,2]
[373149504,1752884789020,5800.0,0.00013503,2]
[373149505,1752884811803,5800.0,0.00013495,2]
[373149535,1752885031896,-1216.0,0.00015,10]
[373149536,1752885031907,-287.8619546,0.00015,10]
[373149537,1752885031955,-459.3900012,0.00015,10]
[373149538,1752885031967,-1216.61063185,0.00015,10]
[373149539,1752885031976,-214.0,0.00015324,3]
[373149540,1752885031986,-500.0,0.00015984,2]
[373149541,1752885031995,-385.64,0.00017134,2]
[373149542,1752885032005,-531.0,0.00017358,2]
[373149543,1752885032016,-150.0,0.00017359,2]
[373149544,1752885032025,-150.0,0.00017359,2]
[373149545,1752885032037,-267.6012093,0.00017359,2]
[373149546,1752885032046,-239.4543838,0.00017359,2]
[373149547,1752885032055,-150.0,0.00017359,2]
[373149548,1752885032064,-280.51092684,0.00017359,2]
[373149549,1752885032074,-150.0,0.000175,2]
[373149550,1752885032083,-150.0,0.0001768,2]
[373149551,1752885032092,-195.15,0.00017895,2]
[373149552,1752885032102,-154.25,0.0001795,2]
[373149553,1752885032111,-500.0,0.00017985,4]
[373149554,1752885032120,-5512.0,0.00018,3]
[373149555,1752885032129,-150.0,0.00018002,2]
[373149556,1752885032139,-666.0,0.00018043,2]
[373149557,1752885032148,-1000.0,0.00018088,2]
[373149558,1752885032158,-16759.87687597,0.00018161,2]
[373149559,1752885032167,-157.2,0.00018241,2]
[373149560,1752885032176,-151.0,0.00018277,2]
[373149562,1752885032185,-150.0,0.00018323,2]
[373149564,1752885032195,-161.57,0.00018329,2]
[373149566,1752885032204,-3308.64656661,0.00018423,2]
[373149568,1752885032212,-5512.0,0.000185,5]
[373149569,1752885032221,-150.0,0.00018645,2]
[373149571,1752885032230,-150.0,0.00018645,2]
[373149573,1752885032239,-150.99,0.00018645,2]
[373149575,1752885032249,-172.0,0.00018649,2]
[373149577,1752885032258,-357.21,0.00018649,2]
[373149579,1752885032267,-164.72,0.00018649,2]
[373149581,1752885032275,-458.49,0.00018649,2]
[373149583,1752885032284,-150.0,0.0001878,2]
[373149585,1752885032294,-743.75402217,0.00018806,2]
[373149587,1752885032303,-7142.856,0.00018889,2]
[373149589,1752885032312,-207.4,0.00018889,2]
[373149591,1752885032321,-7819.5054,0.000189,2]
[373149593,1752885032330,-1230.90923,0.00018901,2]
[373149595,1752885032340,-150.0,0.00018907,2]
[373149597,1752885032349,-1996.59112827,0.00018944,2]
[373149599,1752885032357,-150.0,0.00018966,2]
[373149601,1752885032367,-4892.99,0.00018987,2]
[373149603,1752885032376,-2338.71651,0.0001899,2]
[373149605,1752885032385,-150.0,0.00018998,2]
[373149607,1752885032394,-1000.0,0.00019,2]
[373149609,1752885032404,-500.0,0.00019055,2]
[373149611,1752885032413,-500.0,0.00019055,2]
[373149613,1752885032422,-600.0,0.00019055,2]
[373149615,1752885032431,-500.0,0.00019055,2]
[373149617,1752885032441,-428.1277157,0.00019055,2]
[373149619,1752885032451,-500.0,0.00019055,2]
[373149621,1752885032460,-500.0,0.00019055,2]
[373149623,1752885032469,-151.0,0.00019055,2]
[373149625,1752885032479,-500.0,0.00019055,2]
[373149626,1752885032489,-475.55252167,0.00019055,2]
[373149629,1752885032499,-151.0,0.00019055,2]
[373149630,1752885032509,-500.0,0.00019055,2]
[373149632,1752885032518,-151.0,0.00019055,2]
[373149634,1752885032527,-500.0,0.00019055,2]
[373149635,1752885032536,-151.0,0.00019055,2]
[373149637,1752885032545,-500.0,0.00019055,2]
[373149639,1752885032554,-500.0,0.00019055,2]
[373149641,1752885032563,-151.0,0.00019055,2]
[373149643,1752885032572,-151.0,0.00019055,2]
[373149645,1752885032582,-500.0,0.00019055,2]
[373149646,1752885032591,-151.0,0.00019055,2]
[373149647,1752885032600,-500.0,0.00019055,2]
[373149648,1752885032611,-151.0,0.00019055,2]
[373149649,1752885032620,-151.0,0.00019055,2]
[373149650,1752885032630,-500.0,0.00019055,2]
[373149651,1752885032640,-151.0,0.00019055,2]
[373149652,1752885032650,-500.0,0.00019055,2]
[373149653,1752885032661,-151.0,0.00019055,2]
[373149654,1752885032670,-500.0,0.00019055,2]
[373149655,1752885032679,-151.0,0.00019055,2]
[373149656,1752885032689,-500.0,0.00019055,2]
[373149657,1752885032699,-151.0,0.00019055,2]
[373149658,1752885032709,-500.0,0.00019055,2]
[373149659,1752885032719,-337.7140353,0.00019055,2]
[373149660,1752885032729,-500.0,0.00019055,2]
[373149661,1752885032741,-500.0,0.00019055,2]
[373149662,1752885032751,-500.0,0.00019055,2]
[373149663,1752885032760,-500.0,0.00019055,2]
[373149664,1752885032773,-500.0,0.00019055,2]
[373149665,1752885032786,-500.0,0.00019055,2]
[373149666,1752885032801,-500.0,0.00019055,2]
[373149667,1752885032814,-500.0,0.00019055,2]
[373149668,1752885032825,-500.0,0.00019055,2]
[373149669,1752885032836,-500.0,0.00019055,2]
[373149670,1752885032850,-500.0,0.00019055,2]
[373149671,1752885032864,-500.0,0.00019055,2]
[373149672,1752885032876,-500.0,0.00019055,2]
[373149673,1752885032890,-500.0,0.00019055,2]
[373149674,1752885032903,-500.0,0.00019055,2]
[373149675,1752885032916,-500.0,0.00019055,2]
[373149676,1752885032928,-346.48945171,0.00019055,2]
[373149677,1752885032940,-500.0,0.00019055,2]
[373149678,1752885032952,-500.0,0.00019055,2]
[373149679,1752885032965,-500.0,0.00019055,2]
[373149680,1752885032988,-500.0,0.00019055,2]
[373149681,1752885033000,-500.0,0.00019055,2]
[373149682,1752885033014,-417.32617682,0.00019055,2]
[373149683,1752885033027,-203.748,0.00019057,2]
[373149684,1752885033044,-1892.103,0.00019057,2]
[373149685,1752885033056,-500.0,0.00019067,2]
[373149686,1752885033069,-150.0,0.00019067,2]
[373149687,1752885033083,-150.0,0.00019067,2]
[373149688,1752885033096,-151.55735704,0.00019067,2]
[373149689,1752885033109,-500.0,0.00019067,2]
[373149690,1752885033122,-500.0,0.00019067,2]
[373149691,1752885033135,-150.0,0.00019067,2]
[373149692,1752885033147,-500.0,0.00019067,2]
[373149693,1752885033159,-150.0,0.00019067,2]
[373149694,1752885033172,-150.0,0.00019073,2]
[373149695,1752885033184,-157.27831842,0.00019078,2]
[373149696,1752885033198,-561.74604801,0.00019078,2]
[373149697,1752885033211,-220.54923629,0.00019078,2]
[373149698,1752885033223,-2652.71366381,0.00019078,2]
[373149699,1752885033235,-227.30859125,0.00019078,2]
[373149700,1752885033246,-266.59865808,0.00019078,2]
[373149701,1752885033256,-14459.6941,0.00019078,2]
[373149702,1752885033269,-200.0,0.00019079,2]
[373149703,1752885033281,-266.59865803,0.0001909,2]
[373149704,1752885033296,-300.0,0.00019096,2]
[373149705,1752885033307,-9785.92,0.00019097,2]
[373149706,1752885033318,-266.59865803,0.00019101,2]
[373149707,1752885033328,-168.0,0.00019101,2]
[373149708,1752885033339,-266.59865803,0.00019113,2]
[373149709,1752885033352,-266.59865803,0.00019124,2]
[373149710,1752885033366,-160.0,0.00019127,2]
[373149711,1752885033378,-150.0,0.00019134,2]
[373149712,1752885033389,-266.59865803,0.00019136,2]
[373149713,1752885033400,-2652.71366372,0.00019139,2]
[373149714,1752885033411,-266.59865803,0.00019147,2]
[373149715,1752885033422,-157.2,0.00019153,2]
[373149716,1752885033433,-266.59865803,0.00019159,2]
[373149717,1752885033445,-155.468,0.00019165,2]
[373149718,1752885033456,-150.0,0.00019167,2]
[373149719,1752885033467,-150.0,0.00019167,2]
[373149720,1752885033485,-150.0,0.00019167,2]
[373149721,1752885033497,-150.0,0.00019167,2]
[373149722,1752885033511,-500.0,0.00019167,2]
[373149723,1752885033522,-150.0,0.00019167,2]
[373149724,1752885033534,-500.0,0.00019167,2]
[373149725,1752885033546,-500.0,0.00019167,2]
[373149726,1752885033557,-150.0,0.00019167,2]
[373149727,1752885033569,-150.56135786,0.00019167,2]
[373149728,1752885033580,-500.0,0.00019167,2]
[373149729,1752885033592,-150.0,0.00019167,2]
[373149730,1752885033603,-500.0,0.00019167,2]
[373149731,1752885033615,-150.0,0.00019167,2]
[373149732,1752885033627,-500.0,0.00019167,2]
[373149733,1752885033639,-150.0,0.00019167,2]
[373149734,1752885033650,-150.0,0.00019167,2]
[373149735,1752885033661,-500.0,0.00019167,2]
[373149736,1752885033673,-3264.0,0.00019167,2]
[373149737,1752885033685,-500.0,0.00019167,2]
[373149738,1752885033696,-500.0,0.00019167,2]
[373149739,1752885033707,-500.0,0.00019167,2]
[373149740,1752885033719,-150.0,0.00019167,2]
[373149741,1752885033730,-500.0,0.00019167,2]
[373149742,1752885033742,-150.0,0.00019167,2]
[373149743,1752885033761,-500.0,0.00019167,2]
[373149744,1752885033772,-884.0,0.00019167,2]
[373149745,1752885033785,-150.0,0.00019167,2]
[373149746,1752885033797,-500.0,0.00019167,2]
[373149747,1752885033808,-203.98541512,0.00019167,2]
[373149748,1752885033820,-418.74,0.00019168,2]
[373149749,1752885033831,-743.75402217,0.00019169,2]
[373149750,1752885033843,-500.0,0.00019173,2]
[373149751,1752885033855,-503.63027682,0.00019173,2]
[373149752,1752885033866,-505.48267575,0.00019173,2]
[373149753,1752885033879,-500.0,0.00019173,2]
[373149754,1752885033890,-500.0,0.00019173,2]
[373149755,1752885033902,-500.0,0.00019173,2]
[373149756,1752885033914,-500.0,0.00019173,2]
[373149757,1752885033926,-666.0,0.00019177,2]
[373149758,1752885033938,-300.0,0.00019177,2]
[373149759,1752885033950,-55934.55764173,0.00019178,2]
[373149760,1752885034614,-2358.20721711,0.00019178,2]
[373149765,1752885037758,-801.0,0.00019067,2]
[373149766,1752885037770,-266.59865803,0.0001917,2]
[373149767,1752885037779,-4331.18163279,0.00019178,2]
[373149979,1752885040283,-590.25,0.00019178,2]
[373149986,1752885040338,-58014.37251703,0.00019178,2]
[373149988,1752885040347,-9050.54969828,0.00019178,2]
[373149990,1752885040357,-163.159318,0.00019178,2]
[373149992,1752885040366,-167.151773,0.00019178,2]
[373149994,1752885040375,-151.0,0.00019178,2]
[373149996,1752885040384,-151.0,0.00019178,2]
[373149998,1752885040393,-275.226727,0.00019178,2]
[373149999,1752885040402,-151.0,0.00019178,2]
[373150000,1752885040411,-151.0,0.00019178,2]
[373150002,1752885040421,-151.0,0.00019178,2]
[373150004,1752885040431,-151.0,0.00019178,2]